Cogmind - Beta 16.1 @@@ ROGUE MODE // 2026.04.16 @ 12:42:52 Player: Tibo Result: Destroyed by S-10 Pest with Light Assault Rifle Performance ------------- Evolutions (0) 0 Regions Visited (1) 200 Robots Destroyed (25) 125 Value Destroyed (667) 667 Prototype IDs (3) 60 Alien Tech Used (0) 0 Bonus (0) 0 TOTAL SCORE: 1052 Bonus ------- None Cogmind --------- Core Integrity 0/250 Matter 300/300 Energy 99/100 System Corruption 0% Temperature Cool (0) Movement Core (100) Ox1 Location -10/Materials Parts ------- > --- POWER (1) -------- (None) > --- PROPULSION (2) --- (None) > --- UTILITY (2) ------ Small Storage Unit > --- WEAPON (2) ------- (None) > --- INVENTORY (8) ---- Light Treads Light Treads Aluminum Leg Aluminum Leg Improved Heat Sink Mining Laser Peak State ------------ > --- POWER ------------ Light Nuclear Core > --- PROPULSION ------- Aluminum Leg Aluminum Leg > --- UTILITY ---------- Small Storage Unit Improved Terrain Scanner > --- WEAPON ----------- Assault Rifle Light Assault Rifle > --- INVENTORY -------- Light Ion Engine Light Treads Light Treads Aluminum Leg Aluminum Leg Improved Heat Sink EM Pulse Gun Mining Laser [Rating: 12] Favorites ----------- Power Light Nuclear Core Engine Light Ion Engine Power Core Light Nuclear Core Propulsion Aluminum Leg Leg Aluminum Leg Utility Small Storage Unit Device Improved Terrain Scanner Storage Small Storage Unit Weapon Light Assault Rifle Energy Gun EM Pulse Gun Ballistic Gun Light Assault Rifle Launcher Grenade Launcher Special Weapon Welding Torch Build | -11 -10 ------- Run | Yrd Mat Slots Evolved . | . . Power . | . . Propulsion . | . . Utility . | . . Weapon . | . . Parts Attached 14 | 7 7 Power 2 | 1 1 Engine 1 | 1 . Core 1 | . 1 Reactor . | . . Propulsion 5 | 2 3 Treads . | . . Leg 5 | 2 3 Wheel . | . . Hover . | . . Flight . | . . Utility 2 | 2 . Device 1 | 1 . Storage 1 | 1 . Processor . | . . Hackware . | . . Protection . | . . Artifact . | . . Weapon 5 | 2 3 Energy Gun 1 | . 1 Energy Cannon . | . . Ballistic Gun 2 | 2 . Ballistic Cannon . | . . Launcher 1 | . 1 Special Weapon 1 | . 1 Impact Weapon . | . . Slashing Weapon . | . . Piercing Weapon . | . . Special Melee Weapon . | . . Unidentified Prototypes . | . . Parts Lost 9 | . 9 Power 2 | . 2 Propulsion 2 | . 2 Utility 1 | . 1 Weapon 4 | . 4 Highest Loss Streak 5 | . 5 To Critical Strikes . | . . Average Backups 6 | 3 7 Power . | . . Propulsion 3 | 1 3 Utility . | . . Weapon 1 | 1 1 Tool/Special . | . . Unused Backups 6 | . 6 Power 1 | . 1 Propulsion 3 | . 3 Utility 1 | . 1 Weapon 1 | . 1 Tool/Special . | . . Average Slot Usage (%) 95 | . 95 Engine 5 | . 5 Core 7 | . 7 Leg 26 | . 26 Device 13 | . 13 Storage 14 | . 14 Energy Gun 3 | . 3 Ballistic Gun 18 | . 18 Launcher 3 | . 3 Peak Build Rating 12 | 9 12 Average Rating 9 | 6 10 On Entrance 4 | . 9 Avg Prop Armor Cover (%) . | . . Naked Turns . | . . Heaviest Build 15 | 12 15 Greatest Support 20 | 20 20 Greatest Overweight (x) 1 | 1 1 Average Overweight (x) . | . . Largest Inventory Capacity 8 | 8 8 Average Capacity 7 | 6 8 Most Carried 8 | 5 8 Average Carried 6 | 3 7 Final Capacity 8 | 8 8 Final Carried 6 | 5 6 Class Distribution -------------------- 56% | Mutant 43% | Scavenger-Mutant Dominant Class ---------------- Scavenger-Mutant | -10/Materials Resources | -11 -10 ----------- Run | Yrd Mat Matter Collected 554 | 310 244 Remotely . | . . Salvage Created 954 | 115 839 Parts 52 | 5 47 Haulers Intercepted . | . . Recyclers Shooed . | . . Parts Field Recycled . | . . Retrieved Matter . | . . Parts Self-Destructed . | . . Prevented . | . . Parts Restored . | . . Kills | -11 -10 ------- Run | Yrd Mat Combat Hostiles Destroyed 17 | . 17 Guns 12 | . 12 AOE 4 | . 4 Classes Destroyed 8 | 2 6 Builder 2 | . 2 Tunneler 1 | 1 . Recycler 3 | 1 2 Operator 1 | . 1 Watcher 1 | . 1 Swarmer 3 | . 3 Grunt 11 | . 11 Subdweller 3 | . 3 Best Kill Streak 10 | 1 10 Combat Bots Only 4 | . 4 Max Kills in Single Turn 2 | 1 2 Gunslinging . | . . Exploded 2 | . 2 Melee . | . . Uniques/NPCs Destroyed . | . . Combat | -11 -10 -------- Run | Yrd Mat Hostile Shots Fired 119 | . 119 Missed 42 | . 42 Hits 77 | . 77 Projectile 77 | . 77 Damage Taken 993 | . 993 Core 252 | . 252 Absorbed by Shields . | . . Core Remaining (%) 100 | 100 . Volleys Fired 66 | 10 56 Largest 2 | 2 2 Hottest 60 | 40 60 Shots Fired 118 | 20 98 Gun 114 | 20 94 Cannon . | . . Launcher 4 | . 4 Special . | . . Kinetic 96 | 20 76 Thermal . | . . Explosive 4 | . 4 Electromagnetic 18 | . 18 Robot Hit Streak 15 | 5 15 Robot Miss Streak 3 | 2 3 Penetration Max . | . . Secondary Targets 5 | . 5 Max Gunslinging Chain 1 | . 1 Shots Hit Robots 76 | 10 66 Core Hits 49 | 3 46 Critical Kills 1 | . 1 Critical Parts Destroyed . | . . Critical Strikes 2 | . 2 Destroy 1 | . 1 Corrupt 1 | . 1 Melee Attacks . | . . Impact . | . . Slashing . | . . Piercing . | . . Sneak Attacks . | . . Combat Hostiles . | . . Follow-up Attacks . | . . Damage Inflicted 1486 | 103 1383 Guns 772 | 103 669 Cannons . | . . Explosions 714 | . 714 Melee . | . . Ramming . | . . Kinetic 598 | 103 495 Thermal 196 | . 196 Explosive 269 | . 269 Electromagnetic 423 | . 423 Impact . | . . Slashing . | . . Piercing . | . . Highest Corruption . | . . Average Corruption . | . . Corruption Purged . | . . Corruption Blocked . | . . Overload Shots . | . . Overflow Damage . | . . Projectiles . | . . Explosions . | . . Melee . | . . Knockbacks . | . . Impact . | . . Kinetic . | . . Secondary . | . . Self-Inflicted Damage 101 | . 101 Shots 4 | . 4 Rammed . | . . Targets Rammed . | . . Kicked . | . . Crushed . | . . Highest Temperature 120 | . 120 Average Temperature 30 | . 30 Received Heat Transfer 189 | . 189 Siege Activations . | . . Martial Activations . | . . Shielding Activations . | . . Robots Disrupted 1 | . 1 Combat Hostiles 1 | . 1 Robots Corrupted . | . . Combat Hostiles . | . . Parts Fried 1 | . 1 Impact Corruptions . | . . Robots Melted . | . . Combat Hostiles . | . . Parts Melted . | . . Heat Transferred 150 | . 150 Parts Sabotaged . | . . Parts Stolen . | . . Parts Stripped . | . . Power Chain Reactions 3 | . 3 Alert | -11 -10 ------- Run | Yrd Mat Maximum Alert Level 1 | . 1 Low Security (%) 84 | 100 81 Level 1 15 | . 18 Level 2 . | . . Level 3 . | . . Level 4 . | . . Level 5 . | . . High Security . | . . Max Security . | . . Peak Influence 234 | 5 234 Initial . | . . Average 129 | 1 153 Influence Increases 504 | 10 494 Destroy 0b10 Robot/C 280 | . 280 Destroy 0b10 Robot/NC 40 | 10 30 Destroy Leader 62 | . 62 Successful Hack 14 | . 14 Disable Machine 75 | . 75 Destroy Structure 33 | . 33 Influence Decreases 420 | 10 410 Time Decay 330 | 10 320 Lost Part 90 | . 90 Squads Dispatched 3 | . 3 Investigation 3 | . 3 Extermination . | . . Reinforcement . | . . Assault . | . . Garrison . | . . Intercept . | . . Searches Triggered . | . . Construction Impeded . | . . Haulers Reinforced . | . . Active Scanning Responses . | . . Cargo Convoy Interrupts . | . . Stealth | -11 -10 --------- Run | Yrd Mat Distress Signals 2 | . 2 Communications Jammed . | . . Distress Signals . | . . Times Spotted 30 | . 30 Peak Tracking Total 5 | . 5 Tactical Retreats . | . . Traps | -11 -10 ------- Run | Yrd Mat Traps Triggered 1 | . 1 Indirectly . | . . Trap Hack Attempts . | . . Triggered . | . . Disarmed . | . . Reprogrammed . | . . Reused . | . . Traps Extracted . | . . Installed . | . . Triggered . | . . Machines | -11 -10 ---------- Run | Yrd Mat Machines Disabled 5 | . 5 Max in Single Turn 2 | . 2 Machines Repaired . | . . Machines Dismantled . | . . Machines Sabotaged . | . . Overloaded Fab Kills . | . . Hacking | -11 -10 --------- Run | Yrd Mat Machines Accessed 5 | . 5 Terminals 4 | . 4 Fabricators . | . . Repair Stations . | . . Recycling Units 1 | . 1 Scanalyzers . | . . Garrison Access . | . . Total Hacks 12 | . 12 Successful 4 | . 4 Failed 8 | . 8 Catastrophic 2 | . 2 Database Lockouts . | . . Manual 5 | . 5 Terminals 9 | . 9 Fabricators . | . . Repair Stations . | . . Recycling Units 3 | . 3 Scanalyzers . | . . Garrison Access . | . . Terminal Hacks 3 | . 3 Prototype ID Bank 1 | . 1 Hauler Manifests 1 | . 1 Registered Components 1 | . 1 Fabricator Hacks . | . . Repair Station Hacks . | . . Recycling Unit Hacks 1 | . 1 Retrieve Components 1 | . 1 Scanalyzer . | . . Garrison Access Hacks . | . . Unauthorized Hacks . | . . Terminals . | . . Fabricators . | . . Repair Stations . | . . Recycling Units . | . . Scanalyzers . | . . Garrison Access . | . . Data Cores Recovered 1 | . 1 Used . | . . Hacking Detections 5 | . 5 Full Trace Events 3 | . 3 Feedback Events . | . . Feedback Blocked . | . . Robot Schematics Acquired . | . . Robots Built . | . . Authchips . | . . Time . | . . Total Robot Build Rating . | . . Part Schematics Acquired . | . . Parts Built . | . . Authchips . | . . Time . | . . Total Part Build Rating . | . . Part Studies Acquired . | . . Parts Repaired . | . . Time . | . . Parts Recycled . | . . Recycled Matter . | . . Retrieved Matter . | . . Retrieved Components . | . . Parts Scanalyzed . | . . Part Schematics Acquired . | . . Parts Damaged . | . . Bothacking | -11 -10 ------------ Run | Yrd Mat Used RIF Installer . | . . Robots Hacked . | . . Non-combat . | . . Combat . | . . Robot Hacks Applied . | . . Relay Couplers Released . | . . Fabnet Peak Effective % . | . . Robots Rewired . | . . Allies Hacked . | . . Hacks Repelled . | . . Allies | -11 -10 -------- Run | Yrd Mat Total Allies . | . . Largest Group . | . . Highest-Rated Group . | . . Highest-Rated Ally . | . . Total Orders . | . . Ally Attacks . | . . Total Damage . | . . Kills . | . . Allies Corrupted . | . . Allies Melted . | . . Intel | -11 -10 ------- Run | Yrd Mat Active Infowar (turns) 821 | 50 771 Terrain 821 | 50 771 Robot Analysis Total . | . . Derelict Logs Recovered . | . . Drone Launches . | . . Drone Recoveries . | . . Exploration | -11 -10 ------------- Run | Yrd Mat Turns Passed 942 | 145 797 Spaces Moved 575 | 90 485 Core 33 | 16 17 Treads . | . . Legs 542 | 74 468 Wheels . | . . Hover . | . . Flight . | . . Fastest Speed 50 | 50 100 Average Speed 121 | 113 122 Slowest Speed 190 | 120 190 Overloaded Moves . | . . Propulsion Burnouts . | . . Robots Hopped . | . . Potential Cave-ins . | . . Cave-ins Triggered . | . . Exploration Rate (%) 39 | 4 74 Regions Visited 1 Branch Regions . Pre-discovered Areas . | . . Known Exits Taken . | . . Unknown Exits Taken 1 | 1 . Scrap Searched . | . . Spaces Dug . | . . Terrain Destroyed 42 | . 42 Melee . | . . Projectile . | . . AOE 42 | . 42 Terrain Rammed . | . . Walls Destroyed . | . . Machines Disabled . | . . Actions | -11 -10 --------- Run | Yrd Mat Total 708 | 111 597 Wait 41 | . 41 Move 574 | 89 485 Hop . | . . Pick Up 7 | 5 2 Fast Attach 8 | 7 1 Attach 2 | . 2 Detach . | . . Swap 7 | . 7 Drop 3 | . 3 Fire 66 | 10 56 Melee . | . . Ram . | . . Kick . | . . Crush . | . . Escape Stasis . | . . Rewire . | . . Trap . | . . Miscellaneous . | . . Route ------- -11/Scrapyard -10/Materials (discovered 5 exits: [*Mat x2] / [*Min x2] / [*Sub]) History --------- Turn | Location | Event 13 | -11/Scrapyard | Discovered new exit (range 16) 146 | -11/Scrapyard | Entered Materials 309 | -10/Materials | Build established: Mutant 314 | -10/Materials | Discovered new exit (range 10) 643 | -10/Materials | Discovered new exit (range 8) 678 | -10/Materials | Discovered new exit (range 10) 739 | -10/Materials | Discovered new exit (range 4) 746 | -10/Materials | Derelicts attacked the area 748 | -10/Materials | Build established: Scavenger-Mutant 802 | -10/Materials | Core integrity fell below 50% 858 | -10/Materials | Discovered new exit (range 10) 888 | -10/Materials | Lost 4 parts (1p1n2w) 940 | -10/Materials | Core integrity fell below 20% 943 | -10/Materials | Destroyed by S-10 Pest with Light Assault Rifle Last Messages --------------- 00853_ QW-00U(R) destroyed. 00853_ Lgt. Nuclear Core destroyed. 00855_ Lgt. Assault Rifle destroyed. 00857_ Aluminum Leg destroyed. 00858_ EXIT=FOUND 00858_ U-05 Engineer builds a Wall. 00860_ JN-0PP(R) destroyed. 00862_ U-05 Engineer builds a Wall. 00863_ U-05 Engineer destroyed. 00868_ Acquired 14 matter. 00877_ R-06 Scavenger collects Welding Torch. 00899_ U-05 Engineer builds a Wall. 00917_ Imp. Terrain Scanner destroyed. 00918_ Acquired Welding Torch. 00919_ EM Pulse Gun destroyed. 00920_ Lgt. Ion Engine destroyed. 00927_ Aluminum Leg destroyed. 00927_ S-10 Pest destroyed. 00934_ Welding Torch destroyed. 00936_ S-10 Pest destroyed. Map ----- +----------------------------------------------------+ | | | | | | | | | | | | | | | | | | | | | | | | | | | | | | | ?????????????????????????????????????????????????? | | ?????????????????????????????????????????????????? | | ?????????????????????????????????????????????????? | | ??????????????"?????????????????#????????????????? | | ?????????????????????????????????????????????????? | | ???????????? ????? ????????#????????#????????#???? | | ?????????????????? ? #######????##########??????? | | ?####+#############+### #????# #??????? | | ?# =% s #?/ ?# """#??????? | | ?# < [*s s +??